Cogmind - Beta 16.1 @@@ ROGUE MODE // 2026.03.02 @ 21:44:29 Player: Malvoes Result: Destroyed by Y-45 Defender with Heavy Assault Rifle Performance ------------- Evolutions (1) 500 Regions Visited (4) 800 Robots Destroyed (20) 100 Value Destroyed (566) 566 Prototype IDs (2) 40 Alien Tech Used (0) 0 Bonus (337) 337 TOTAL SCORE: 2343 Bonus ------- Pacifist 200 Follower Combat Kills 137 Cogmind --------- Core Integrity 0/400 Matter 264/300 Energy 70/250 System Corruption 0% Temperature Cool (9) Movement Core (200) Ox3 Location -9/Storage Parts ------- > --- POWER (2) -------- (None) > --- PROPULSION (2) --- (None) > --- UTILITY (3) ------ Heat Sink Medium Battery Field Recycling Unit > --- WEAPON (2) ------- (None) > --- INVENTORY (5) ---- (None) Peak State ------------ > --- POWER ------------ Improved Ion Engine Improved Ion Engine > --- PROPULSION ------- Aluminum Leg Improved Aluminum Leg > --- UTILITY ---------- Improved Heat Sink Cooling System Small Storage Unit > --- WEAPON ----------- Beam Rifle Assault Rifle > --- INVENTORY -------- Improved Ion Engine Aluminum Leg Cooling System Medium Battery Field Recycling Unit Light Assault Rifle Mining Laser [Rating: 17] Favorites ----------- Power Improved Ion Engine Engine Improved Ion Engine Propulsion Aluminum Leg Treads Light Treads Leg Aluminum Leg Utility Small Storage Unit Device Cooling System Storage Small Storage Unit Weapon Assault Rifle Energy Gun Medium Laser Ballistic Gun Assault Rifle Special Weapon Mining Laser Build | -11 -10 -10 -9 -9 ------- Run | Yrd Mat Min Mat Sto Slots Evolved 2 | . . . 2 . Power 1 | . . . 1 . Propulsion . | . . . . . Utility 1 | . . . 1 . Weapon . | . . . . . Parts Attached 29 | 6 2 3 11 7 Power 6 | 1 1 1 2 1 Engine 6 | 1 1 1 2 1 Core . | . . . . . Reactor . | . . . . . Propulsion 9 | 2 . 1 3 3 Treads 1 | . . . . 1 Leg 8 | 2 . 1 3 2 Wheel . | . . . . . Hover . | . . . . . Flight . | . . . . . Utility 8 | 1 1 . 4 2 Device 6 | . 1 . 3 2 Storage 2 | 1 . . 1 . Processor . | . . . . . Hackware . | . . . . . Protection . | . . . . . Artifact . | . . . . . Weapon 6 | 2 . 1 2 1 Energy Gun 3 | 1 . . 2 . Energy Cannon . | . . . . . Ballistic Gun 2 | 1 . . . 1 Ballistic Cannon . | . . . . . Launcher . | . . . . . Special Weapon 1 | . . 1 . . Impact Weapon . | . . . . . Slashing Weapon . | . . . . . Piercing Weapon . | . . . . . Special Melee Weapon . | . . . . . Unidentified Prototypes . | . . . . . Parts Lost 20 | . . 2 5 13 Power 4 | . . 1 1 2 Propulsion 6 | . . 1 1 4 Utility 4 | . . . 1 3 Weapon 6 | . . . 2 4 Highest Loss Streak 9 | . . 2 2 9 To Critical Strikes . | . . . . . Average Backups 6 | 2 6 7 6 3 Power 1 | . 2 2 1 . Propulsion . | 1 1 1 1 . Utility 2 | . 1 2 2 2 Weapon 1 | . 1 2 2 1 Tool/Special . | . . . . . Unused Backups 2 | . 1 . 1 . Power 1 | . 1 . . . Propulsion 1 | . . . 1 . Utility . | . . . . . Weapon . | . . . . . Tool/Special . | . . . . . Average Slot Usage (%) 86 | . 97 80 98 77 Engine 12 | . 14 5 21 14 Leg 18 | . 28 17 21 11 Device 17 | . 11 14 21 19 Storage 12 | . 14 14 11 11 Energy Gun 11 | . 14 10 11 13 Ballistic Gun 10 | . 14 14 10 3 Special Weapon 1 | . . 3 . . Peak Build Rating 17 | 6 10 10 17 15 Average Rating 10 | 3 9 8 15 11 On Entrance 7 | . 6 10 10 11 Avg Prop Armor Cover (%) . | . . . . . Naked Turns . | . . . . . Heaviest Build 28 | 14 18 18 28 27 Greatest Support 26 | 20 20 20 23 26 Greatest Overweight (x) 2 | . . 1 1 2 Average Overweight (x) . | . . . . . Largest Inventory Capacity 8 | 8 8 8 8 8 Average Capacity 7 | 6 8 8 8 7 Most Carried 8 | 5 8 8 8 5 Average Carried 6 | 2 6 7 6 3 Final Capacity 8 | 8 8 8 8 5 Final Carried 8 | 3 8 8 6 . Class Distribution -------------------- 98% | Mutant Dominant Class ---------------- Mutant | -10/Materials Mutant | -10/Mines Mutant | -9/Materials Mutant | -9/Storage Resources | -11 -10 -10 -9 -9 ----------- Run | Yrd Mat Min Mat Sto Matter Collected 587 | 182 . 150 183 72 Remotely . | . . . . . Salvage Created 642 | . . 24 378 240 Parts 46 | . . . 28 18 Haulers Intercepted . | . . . . . Recyclers Shooed 1 | . . . . 1 Parts Field Recycled . | . . . . . Retrieved Matter . | . . . . . Parts Self-Destructed . | . . . . . Prevented . | . . . . . Parts Restored . | . . . . . Kills | -11 -10 -10 -9 -9 ------- Run | Yrd Mat Min Mat Sto Combat Hostiles Destroyed 22 | . . 2 12 8 Guns 22 | . . 2 12 8 Classes Destroyed 4 | . . 1 3 . Swarmer 7 | . . . 5 2 Grunt 9 | . . . 5 4 Sentry 4 | . . . 2 2 Assembled 2 | . . 2 . . Best Kill Streak 4 | . . 2 4 3 Combat Bots Only 4 | . . 2 4 3 Max Kills in Single Turn 1 | . . 1 1 1 Gunslinging . | . . . . . Exploded . | . . . . . Melee . | . . . . . Uniques/NPCs Destroyed . | . . . . . Combat | -11 -10 -10 -9 -9 -------- Run | Yrd Mat Min Mat Sto Hostile Shots Fired 273 | . . 38 130 105 Missed 81 | . . 10 40 31 Hits 192 | . . 28 90 74 Melee 1 | . . 1 . . Projectile 191 | . . 27 90 74 Critical Strikes 6 | . . . 2 4 Damage Taken 2300 | . . 437 938 925 Core 542 | . . 134 134 274 Absorbed by Shields . | . . . . . Core Remaining (%) 73 | 100 . 46 . . Volleys Fired 95 | . . 22 34 39 Largest 2 | . . 1 2 2 Hottest 121 | . . 100 121 121 Shots Fired 136 | . . 22 67 47 Gun 124 | . . 12 67 45 Cannon . | . . . . . Launcher . | . . . . . Special 12 | . . 10 . 2 Kinetic 69 | . . 12 30 27 Thermal 67 | . . 10 37 20 Explosive . | . . . . . Electromagnetic . | . . . . . Robot Hit Streak 14 | . . 2 8 14 Robot Miss Streak 4 | . . 2 4 3 Penetration Max . | . . . . . Secondary Targets 4 | . . . 4 . Max Gunslinging Chain 1 | . . . 1 . Shots Hit Robots 87 | . . 6 40 41 Core Hits 55 | . . 4 22 29 Critical Kills . | . . . . . Critical Parts Destroyed . | . . . . . Critical Strikes 4 | . . . 2 2 Burn 4 | . . . 2 2 Melee Attacks . | . . . . . Impact . | . . . . . Slashing . | . . . . . Piercing . | . . . . . Sneak Attacks . | . . . . . Combat Hostiles . | . . . . . Follow-up Attacks . | . . . . . Damage Inflicted 1121 | . . 73 522 526 Guns 1061 | . . 73 522 466 Cannons . | . . . . . Explosions . | . . . . . Melee . | . . . . . Ramming 12 | . . . . 12 Kinetic 460 | . . 73 188 199 Thermal 649 | . . . 334 315 Explosive . | . . . . . Electromagnetic . | . . . . . Impact . | . . . . . Slashing . | . . . . . Piercing . | . . . . . Highest Corruption . | . . . . . Average Corruption . | . . . . . Corruption Purged . | . . . . . Corruption Blocked . | . . . . . Overload Shots . | . . . . . Overflow Damage 3 | . . . . 3 Projectiles 3 | . . . . 3 Explosions . | . . . . . Melee . | . . . . . Knockbacks . | . . . . . Impact . | . . . . . Kinetic . | . . . . . Secondary . | . . . . . Self-Inflicted Damage . | . . . . . Shots . | . . . . . Rammed 2 | . . . . 2 Targets Rammed 3 | . . 1 . 2 Kicked 1 | . . 1 . . Crushed . | . . . . . Highest Temperature 27 | . . . 3 27 Average Temperature 8 | . . . 1 10 Received Heat Transfer 621 | . . . 321 300 Siege Activations . | . . . . . Martial Activations . | . . . . . Shielding Activations . | . . . . . Robots Disrupted . | . . . . . Combat Hostiles . | . . . . . Robots Corrupted . | . . . . . Combat Hostiles . | . . . . . Parts Fried . | . . . . . Impact Corruptions . | . . . . . Robots Melted . | . . . . . Combat Hostiles . | . . . . . Parts Melted 3 | . . . . 3 Heat Transferred 1595 | . . . 963 632 Parts Sabotaged . | . . . . . Parts Stolen . | . . . . . Parts Stripped . | . . . . . Power Chain Reactions . | . . . . . Alert | -11 -10 -10 -9 -9 ------- Run | Yrd Mat Min Mat Sto Maximum Alert Level . | . . . . . Low Security (%) 100 | 100 100 100 100 100 Level 1 . | . . . . . Level 2 . | . . . . . Level 3 . | . . . . . Level 4 . | . . . . . Level 5 . | . . . . . High Security . | . . . . . Max Security . | . . . . . Peak Influence 164 | . 5 66 164 55 Initial 53 | . . . 9 53 Average 24 | . . 13 48 24 Influence Increases 755 | . 5 142 413 195 Destroy 0b10 Robot/C 540 | . . 120 260 160 Destroy 0b10 Robot/NC 5 | . . 5 . . Destroy Leader 90 | . . 10 60 20 Allied During Kill 7 | . . 5 2 . Successful Hack 5 | . 5 . . . Disable Machine 15 | . . . 15 . Destroy Structure 3 | . . 2 1 . Lose Combat Pursuer 90 | . . . 75 15 Influence Decreases 755 | . 5 116 311 323 Entered New Map 92 | . . . 17 75 Time Decay 508 | . 5 116 224 163 Lost Part 135 | . . . 50 85 Lost Ally 20 | . . . 20 . Squads Dispatched 5 | . . 1 3 1 Investigation 1 | . . . 1 . Extermination . | . . . . . Reinforcement 2 | . . . 2 . Assault 1 | . . 1 . . Garrison 1 | . . . . 1 Intercept . | . . . . . Searches Triggered . | . . . . . Construction Impeded . | . . . . . Haulers Reinforced . | . . . . . Active Scanning Responses . | . . . . . Cargo Convoy Interrupts . | . . . . . Stealth | -11 -10 -10 -9 -9 --------- Run | Yrd Mat Min Mat Sto Distress Signals 2 | . . . 1 1 Communications Jammed . | . . . . . Distress Signals . | . . . . . Times Spotted 51 | . 1 5 33 12 Peak Tracking Total 12 | . 3 5 12 4 Tactical Retreats 4 | . . . 3 1 Traps | -11 -10 -10 -9 -9 ------- Run | Yrd Mat Min Mat Sto Traps Triggered . | . . . . . Indirectly . | . . . . . Trap Hack Attempts . | . . . . . Triggered . | . . . . . Disarmed . | . . . . . Reprogrammed . | . . . . . Reused . | . . . . . Traps Extracted . | . . . . . Installed . | . . . . . Triggered . | . . . . . Machines | -11 -10 -10 -9 -9 ---------- Run | Yrd Mat Min Mat Sto Machines Disabled 1 | . . . 1 . Max in Single Turn 1 | . . . 1 . Machines Repaired . | . . . . . Machines Dismantled . | . . . . . Machines Sabotaged . | . . . . . Overloaded Fab Kills . | . . . . . Hacking | -11 -10 -10 -9 -9 --------- Run | Yrd Mat Min Mat Sto Machines Accessed 4 | . 3 . 1 . Terminals 4 | . 3 . 1 . Fabricators . | . . . . . Repair Stations . | . . . . . Recycling Units . | . . . . . Scanalyzers . | . . . . . Garrison Access . | . . . . . Total Hacks 6 | . 4 . 2 . Successful 3 | . 3 . . . Failed 3 | . 1 . 2 . Catastrophic 1 | . . . 1 . Database Lockouts . | . . . . . Manual . | . . . . . Terminals 6 | . 4 . 2 . Fabricators . | . . . . . Repair Stations . | . . . . . Recycling Units . | . . . . . Scanalyzers . | . . . . . Garrison Access . | . . . . . Terminal Hacks 3 | . 3 . . . Prototype ID Bank 1 | . 1 . . . Emergency Access Points 1 | . 1 . . . Zone Layout 1 | . 1 . . . Fabricator Hacks . | . . . . . Repair Station Hacks . | . . . . . Recycling Unit Hacks . | . . . . . Scanalyzer . | . . . . . Garrison Access Hacks . | . . . . . Unauthorized Hacks . | . . . . . Terminals . | . . . . . Fabricators . | . . . . . Repair Stations . | . . . . . Recycling Units . | . . . . . Scanalyzers . | . . . . . Garrison Access . | . . . . . Data Cores Recovered . | . . . . . Used . | . . . . . Hacking Detections 2 | . 1 . 1 . Full Trace Events 1 | . . . 1 . Feedback Events . | . . . . . Feedback Blocked . | . . . . . Robot Schematics Acquired . | . . . . . Robots Built . | . . . . . Authchips . | . . . . . Time . | . . . . . Total Robot Build Rating . | . . . . . Part Schematics Acquired . | . . . . . Parts Built . | . . . . . Authchips . | . . . . . Time . | . . . . . Total Part Build Rating . | . . . . . Part Studies Acquired . | . . . . . Parts Repaired . | . . . . . Time . | . . . . . Parts Recycled . | . . . . . Recycled Matter . | . . . . . Retrieved Matter . | . . . . . Retrieved Components . | . . . . . Parts Scanalyzed . | . . . . . Part Schematics Acquired . | . . . . . Parts Damaged . | . . . . . Bothacking | -11 -10 -10 -9 -9 ------------ Run | Yrd Mat Min Mat Sto Used RIF Installer . | . . . . . Robots Hacked . | . . . . . Non-combat . | . . . . . Combat . | . . . . . Robot Hacks Applied . | . . . . . Relay Couplers Released . | . . . . . Fabnet Peak Effective % . | . . . . . Robots Rewired . | . . . . . Allies Hacked . | . . . . . Hacks Repelled . | . . . . . Allies | -11 -10 -10 -9 -9 -------- Run | Yrd Mat Min Mat Sto Total Allies 1 | . . 1 . . Largest Group 1 | . . 1 1 . Highest-Rated Group 31 | . . 31 31 . Highest-Rated Ally 31 | . . 31 31 . Total Orders . | . . . . . Ally Attacks 22 | . . 19 3 . Total Damage 359 | . . 317 42 . Kills 9 | . . 8 1 . Allies Corrupted . | . . . . . Allies Melted . | . . . . . Intel | -11 -10 -10 -9 -9 ------- Run | Yrd Mat Min Mat Sto Active Infowar (turns) . | . . . . . Robot Analysis Total . | . . . . . Derelict Logs Recovered 1 | . . 1 . . Drone Launches . | . . . . . Drone Recoveries . | . . . . . Exploration | -11 -10 -10 -9 -9 ------------- Run | Yrd Mat Min Mat Sto Turns Passed 2032 | 54 146 857 605 370 Spaces Moved 986 | 39 114 441 246 146 Core 19 | 12 . . . 7 Treads 45 | . . . . 45 Legs 922 | 27 114 441 246 94 Wheels . | . . . . . Hover . | . . . . . Flight . | . . . . . Fastest Speed 50 | 50 120 120 120 100 Average Speed 157 | 98 120 153 188 164 Slowest Speed 190 | 120 120 190 190 190 Overloaded Moves . | . . . . . Propulsion Burnouts . | . . . . . Robots Hopped . | . . . . . Potential Cave-ins . | . . . . . Cave-ins Triggered . | . . . . . Exploration Rate (%) 29 | 3 18 69 32 23 Regions Visited 4 Branch Regions 2 Pre-discovered Areas 1 | . . 1 . . Known Exits Taken . | . . . . . Unknown Exits Taken 4 | 1 1 1 1 . Scrap Searched . | . . . . . Spaces Dug 1 | . . 1 . . Terrain Destroyed 2 | . . 2 . . Melee . | . . . . . Projectile 2 | . . 2 . . AOE . | . . . . . Terrain Rammed . | . . . . . Walls Destroyed . | . . . . . Machines Disabled . | . . . . . Actions | -11 -10 -10 -9 -9 --------- Run | Yrd Mat Min Mat Sto Total 1306 | 53 123 578 321 231 Wait 160 | 2 . 108 20 30 Move 982 | 38 113 440 245 146 Hop . | . . . . . Pick Up 21 | 7 6 2 4 2 Fast Attach 6 | 2 1 1 . 2 Attach 21 | 4 . 2 7 8 Detach 1 | . . . 1 . Swap 8 | . 1 1 5 1 Drop 9 | . 2 1 5 1 Fire 95 | . . 22 34 39 Melee . | . . . . . Ram . | . . . . . Kick 1 | . . 1 . . Crush 2 | . . . . 2 Escape Stasis . | . . . . . Rewire . | . . . . . Trap . | . . . . . Miscellaneous . | . . . . . Route ------- -11/Scrapyard -10/Materials -10/Mines -9/Materials -9/Storage History --------- Turn | Location | Event 31 | -11/Scrapyard | Discovered new exit (range 16) 55 | -11/Scrapyard | Entered Materials 182 | -10/Materials | Discovered new exit (range 8) 201 | -10/Materials | Entered Mines 202 | -10/Mines | Met a Derelict testing a Signal Generator 302 | -10/Mines | Build established: Mutant 314 | -10/Mines | Excavation squad dispatched 314 | -10/Mines | A large section of the Mines collapsed 378 | -10/Mines | Core integrity fell below 50% 1045 | -10/Mines | Discovered new exit (range 11) 1058 | -10/Mines | Entered Materials 1058 | -9/Materials | Accompanied by 1 ally 1058 | -9/Materials | Evolved 2 slots: Power x1, Utility x1 1561 | -9/Materials | Discovered new exit (range 16) 1663 | -9/Materials | Entered Storage 1815 | -9/Storage | Core integrity fell below 50% 1839 | -9/Storage | Lost 3 parts (1p1n1w) 1984 | -9/Storage | Garrison activated, responded to threat 2012 | -9/Storage | Core integrity fell below 20% 2033 | -9/Storage | Destroyed by Y-45 Defender with Heavy Assault Rifle Last Messages --------------- Acquired Heat Sink. C-30 ARC bursts open, deploying its payload. S-10 Pest unfolds itself. Spread Laser destroyed. S-10 Pest destroyed. Weight Redist. System destroyed. S-10 Pest calls for garrison reinforcements. ALERT: Activating Garrison Access S001. S-10 Pest destroyed. R-06 Scavenger collects Flight Unit. S-10 Pest destroyed. [Achievement: Organ Harvest] Imp. Ion Engine destroyed. Cooling System destroyed. Aluminum Leg destroyed. Sml. Storage Unit destroyed. Critical hit (Burn: +37). Lgt. Assault Rifle destroyed. Destroyed Heat Sink. Mining Laser destroyed. Map ----- +----------------------------------------------------+ | | | | | | | | | | | | | | | | | | | | | | | | | | | | | | | | | | | | | | | ????????????????????????????????????????????????? | | ????????????????????????????????????????????????? | | ??????????################################??????? | | ?????????^^ ######?? | | ????????? ^ #?? | | ?????????^ Y%* ### #?? | | ????????????????#########@############+###?# #?? | | ?????????????????????# % #?????# ##??# #?? | | ?????????????????????#Y #?????# T#??# #?? | | ???????????????????? + """#?????#" "##### #?? | | ??????????????????"" # """#?????#[ ]## #?? | | ???????????????? ?# """#?????#[ ]## #?? | | ???????????????" ??# """#?????#[ ]## #?? | | ???????????????" ???#% """#?????#[ ]## #?? | | ?????????????? ????# #?????###### #?? | | ???????# ############# #??????????# #?? | | ???????# + w #??????????# #?? | | ???????# # % #??????????# #?? | | ???????# " #############??????# #?? | | ????+ "%" %%#??????# #?? | | ??????##### ###########%########%#??????# #?? | | ??????????????????????# #??????#!#??????# #?? | | ??????????????????????# #??????#%#??????# #?? | | ??????????????????????#=#??????#!#?###### #?? | | ??????????????????????# #??????# ### ## #?? | | ?????????????????????## ##?????#% #?? | | ?????????????????????# #????##+### ##### #?? | | ?????????????????????# #????# =/##+###### #?? | | ?????????????????????# #????# [ # ## #?? | | ?????????????????????## ##????# # ## #?? | | ??????????????????????# ####### # ## #?? | +----------------------------------------------------+ Best States ------------- Heat Dissipation 64 Energy Generation 19 Energy Capacity 430 Matter Stores 300 Matter Capacity 300 Sight Range 16 Terrain Scan Density 10 Additional Mass Support 6 Evasion (%) 55 Recoil Reduction 1 Item Schematics ----------------- None Robot Schematics ------------------ None Fabricated ------------ Nothing Repaired ---------- Nothing Studied --------- None Alien Tech Used ----------------- None Achievements -------------- DATA ERROR: Steam Global Achievement% For Emergencies Only I Have A Map? Organ Harvest There's More Where That Came From Challenges ------------ None Game ------ Seed ElectrostormPhasingNullifier Manual? 0 Play Time 00:28:46 Cumulative 18.1 hours Start 2026.03.02 @ 21:16:24 End 2026.03.02 @ 21:44:29 Sessions 1 Manual Loads 0 Difficulty Rogue Special Mode None Game No. 41 Rogue 41 Adventurer 0 Explorer 0 Win Type - Total 0 Types 0/0/0/0/0/0/0/0/0/0 Lore% 8 Gallery% 19 Achievement% 10 Wizard Run 0 Options --------- Layout 1 ASCII 0 Keyboard 0 Movement Numpad Keybinds 0 Fullscreen 1 Font 24/Smallcaps Map View 50x35 Zoom Use 0% Tactical HUD 0 Map Filters NONE Filters NONE Steam 1 RUN: 379a49b9-f06f-4db9-b9ad-c39b0a74fefd